[Event "Early-Titled-Tuesday-Blitz-October-17-2023"]
[Site "Chess.com"]
[Date "2023.10.17"]
[Round "10"]
[White "arminmusovic"]
[Black "Josgar05"]
[Result "1-0"]
[WhiteElo "2492"]
[BlackElo "2359"]
[TimeControl "180+1"]
[EndTime "9:57:23 PDT"]
[Termination "arminmusovic won on time"]

1. e4 {[%clk 0:03:00.9]} 1... e6 {[%clk 0:01:08.2]} 2. Qe2 {[%clk 0:03:00.3]}
2... d5 {[%clk 0:01:09.1]} 3. exd5 {[%clk 0:03:00.9]} 3... Qxd5 {[%clk
0:01:08.7]} 4. Nc3 {[%clk 0:03:00.8]} 4... Qd8 {[%clk 0:01:09.1]} 5. Nf3 {[%clk
0:03:00.8]} 5... Nc6 {[%clk 0:01:10]} 6. g3 {[%clk 0:03:00.6]} 6... Nf6 {[%clk
0:01:10.9]} 7. Bg2 {[%clk 0:03:00.9]} 7... Be7 {[%clk 0:01:11.8]} 8. O-O {[%clk
0:03:01.5]} 8... O-O {[%clk 0:01:11.7]} 9. Rd1 {[%clk 0:03:00.1]} 9... Bd7
{[%clk 0:01:11.7]} 10. d4 {[%clk 0:03:00.7]} 10... Qc8 {[%clk 0:01:12.1]} 11. a3
{[%clk 0:03:01.2]} 11... a6 {[%clk 0:01:04.1]} 12. Ne4 {[%clk 0:03:01.5]} 12...
Rb8 {[%clk 0:00:58.3]} 13. c3 {[%clk 0:03:00.5]} 13... b5 {[%clk 0:00:57]} 14.
Bf4 {[%clk 0:03:00.6]} 14... a5 {[%clk 0:00:54.6]} 15. Rac1 {[%clk 0:03:00]}
15... h6 {[%clk 0:00:50.6]} 16. Ne5 {[%clk 0:02:58.8]} 16... Nxe5 {[%clk
0:00:50.2]} 17. Bxe5 {[%clk 0:02:55.4]} 17... Nxe4 {[%clk 0:00:32.7]} 18. Bxe4
{[%clk 0:02:56.3]} 18... Bd6 {[%clk 0:00:16]} 19. Bb1 {[%clk 0:02:53]} 19...
Bxe5 {[%clk 0:00:15.8]} 20. dxe5 {[%clk 0:02:53.5]} 20... Bc6 {[%clk 0:00:16.1]}
21. Rd4 {[%clk 0:02:43]} 21... g6 {[%clk 0:00:16.2]} 22. Rh4 {[%clk 0:02:42.1]}
22... h5 {[%clk 0:00:16.5]} 23. Qe3 {[%clk 0:02:36]} 23... Kg7 {[%clk
0:00:16.1]} 24. Rxh5 {[%clk 0:02:32.4]} 24... Rh8 {[%clk 0:00:10.7]} 25. Rxh8
{[%clk 0:02:32.5]} 25... Qxh8 {[%clk 0:00:11.3]} 26. Qg5 {[%clk 0:02:33.2]}
26... Qd8 {[%clk 0:00:10.8]} 27. Qe3 {[%clk 0:02:31.2]} 27... Qe7 {[%clk
0:00:10.1]} 28. Bc2 {[%clk 0:02:29]} 28... Rd8 {[%clk 0:00:10.5]} 29. h4 {[%clk
0:02:25.8]} 29... a4 {[%clk 0:00:11.4]} 30. Re1 {[%clk 0:02:19.6]} 30... Bd5
{[%clk 0:00:11]} 31. Qf4 {[%clk 0:02:18.5]} 31... Rb8 {[%clk 0:00:10.4]} 32. Kh2
{[%clk 0:02:11.7]} 1-0

[Event "Early-Titled-Tuesday-Blitz-October-17-2023"]
[Site "Chess.com"]
[Date "2023.10.17"]
[Round "10"]
[White "Resignify"]
[Black "MdSharifHossain"]
[Result "0-1"]
[WhiteElo "2334"]
[BlackElo "2218"]
[TimeControl "180+1"]
[EndTime "9:57:36 PDT"]
[Termination "MdSharifHossain won on time"]

1. e4 {[%clk 0:03:00.9]} 1... c5 {[%clk 0:02:58.9]} 2. Nc3 {[%clk 0:03:00.8]}
2... Nc6 {[%clk 0:02:59.7]} 3. g3 {[%clk 0:03:01.4]} 3... d6 {[%clk 0:03:00.1]}
4. Bg2 {[%clk 0:03:01.9]} 4... e5 {[%clk 0:03:01]} 5. d3 {[%clk 0:03:02.3]} 5...
h5 {[%clk 0:02:59.9]} 6. Nf3 {[%clk 0:02:58]} 6... Nd4 {[%clk 0:02:56.9]} 7. h3
{[%clk 0:02:52.9]} 7... Ne7 {[%clk 0:02:55.4]} 8. Be3 {[%clk 0:02:20.5]} 8...
Ng6 {[%clk 0:02:54.3]} 9. Nd5 {[%clk 0:02:15.4]} 9... h4 {[%clk 0:02:52.6]} 10.
g4 {[%clk 0:02:10.3]} 10... Be6 {[%clk 0:02:49.5]} 11. c3 {[%clk 0:02:05.6]}
11... Nxf3+ {[%clk 0:02:38.5]} 12. Bxf3 {[%clk 0:02:02]} 12... Be7 {[%clk
0:02:37.2]} 13. Qa4+ {[%clk 0:01:56.1]} 13... Bd7 {[%clk 0:02:34.2]} 14. Qb3
{[%clk 0:01:54.4]} 14... Bc6 {[%clk 0:02:34]} 15. O-O {[%clk 0:01:40.3]} 15...
O-O {[%clk 0:02:29.9]} 16. Bg2 {[%clk 0:01:38.1]} 16... Bg5 {[%clk 0:02:28.7]}
17. Rad1 {[%clk 0:01:31.4]} 17... Bxd5 {[%clk 0:02:23]} 18. Qxd5 {[%clk
0:01:24.6]} 18... Bf4 {[%clk 0:02:20.7]} 19. d4 {[%clk 0:01:12.8]} 19... cxd4
{[%clk 0:02:17.3]} 20. cxd4 {[%clk 0:01:11.8]} 20... Qb6 {[%clk 0:02:06]} 21. b3
{[%clk 0:01:06]} 21... Rac8 {[%clk 0:02:02.2]} 22. dxe5 {[%clk 0:00:14.9]} 22...
Bxe3 {[%clk 0:02:00.2]} 23. fxe3 {[%clk 0:00:13.8]} 23... Qxe3+ {[%clk
0:01:59.6]} 24. Kh1 {[%clk 0:00:11.7]} 24... dxe5 {[%clk 0:01:59]} 25. Qxb7
{[%clk 0:00:07.6]} 25... Rc2 {[%clk 0:01:55.5]} 26. Rd7 {[%clk 0:00:02.5]} 26...
Nf4 {[%clk 0:01:54.5]} 27. Rg1 {[%clk 0:00:01.7]} 27... Nxg2 {[%clk 0:01:49.8]}
0-1

[Event "Early-Titled-Tuesday-Blitz-October-17-2023"]
[Site "Chess.com"]
[Date "2023.10.17"]
[Round "10"]
[White "Manukyan_Artak"]
[Black "invisible_s0ul"]
[Result "1-0"]
[WhiteElo "2459"]
[BlackElo "2270"]
[TimeControl "180+1"]
[EndTime "9:57:41 PDT"]
[Termination "Manukyan_Artak won on time"]

1. e4 {[%clk 0:03:00.9]} 1... c5 {[%clk 0:03:00.6]} 2. Nf3 {[%clk 0:03:00.7]}
2... d6 {[%clk 0:03:01.3]} 3. Bb5+ {[%clk 0:03:00.3]} 3... Bd7 {[%clk
0:02:59.6]} 4. Bxd7+ {[%clk 0:03:00.3]} 4... Nxd7 {[%clk 0:03:00.5]} 5. c4
{[%clk 0:03:01.2]} 5... Ngf6 {[%clk 0:02:58.6]} 6. Nc3 {[%clk 0:03:02.1]} 6...
g6 {[%clk 0:02:57.6]} 7. d3 {[%clk 0:03:00.9]} 7... Bg7 {[%clk 0:02:56.7]} 8.
Bg5 {[%clk 0:03:01.5]} 8... O-O {[%clk 0:02:56.7]} 9. Qd2 {[%clk 0:03:02.1]}
9... a6 {[%clk 0:02:53.5]} 10. a4 {[%clk 0:03:01.8]} 10... Ne5 {[%clk
0:02:15.3]} 11. Qe2 {[%clk 0:02:49.2]} 11... Nxf3+ {[%clk 0:01:53.5]} 12. Qxf3
{[%clk 0:02:45.7]} 12... Nd7 {[%clk 0:01:54]} 13. O-O {[%clk 0:02:44.7]} 13...
h6 {[%clk 0:01:46.6]} 14. Bh4 {[%clk 0:02:40]} 14... Ne5 {[%clk 0:01:47]} 15.
Qe2 {[%clk 0:02:39.9]} 15... Nc6 {[%clk 0:01:42]} 16. Nd5 {[%clk 0:02:38.1]}
16... g5 {[%clk 0:01:31.3]} 17. Bg3 {[%clk 0:02:37.5]} 17... Nd4 {[%clk
0:01:31.9]} 18. Qd1 {[%clk 0:02:37.4]} 18... e6 {[%clk 0:01:30.2]} 19. Ne3
{[%clk 0:02:36.6]} 19... e5 {[%clk 0:00:53.6]} 20. Nd5 {[%clk 0:02:33.6]} 20...
Kh7 {[%clk 0:00:42.4]} 21. f3 {[%clk 0:02:33.7]} 21... f5 {[%clk 0:00:38.4]} 22.
Bf2 {[%clk 0:02:33.2]} 22... Ne6 {[%clk 0:00:30.6]} 23. b4 {[%clk 0:02:31.5]}
23... b6 {[%clk 0:00:29.2]} 24. a5 {[%clk 0:02:31.1]} 24... bxa5 {[%clk
0:00:27.3]} 25. bxc5 {[%clk 0:02:31.4]} 25... dxc5 {[%clk 0:00:24.3]} 26. Qa4
{[%clk 0:02:30.2]} 26... Qd6 {[%clk 0:00:22.8]} 27. Qxa5 {[%clk 0:02:29.6]}
27... Nd4 {[%clk 0:00:20.7]} 28. Bxd4 {[%clk 0:02:29.1]} 28... exd4 {[%clk
0:00:20.1]} 29. Rfb1 {[%clk 0:02:24.3]} 29... fxe4 {[%clk 0:00:17.7]} 30. fxe4
{[%clk 0:02:24]} 30... Be5 {[%clk 0:00:09.1]} 31. Rb6 {[%clk 0:02:19.7]} 31...
Bxh2+ {[%clk 0:00:07.3]} 32. Kh1 {[%clk 0:02:19.4]} 32... Qg3 {[%clk 0:00:06.1]}
33. Qxc5 {[%clk 0:02:10.7]} 33... Rf7 {[%clk 0:00:02.6]} 34. Qc6 {[%clk
0:02:06.7]} 34... Raf8 {[%clk 0:00:03.1]} 35. Qxh6+ {[%clk 0:02:06.2]} 35... Kg8
{[%clk 0:00:03.8]} 36. Rg6+ {[%clk 0:02:06.1]} 1-0

[Event "Early-Titled-Tuesday-Blitz-October-17-2023"]
[Site "Chess.com"]
[Date "2023.10.17"]
[Round "10"]
[White "Balla_Tamas"]
[Black "cycygogne"]
[Result "0-1"]
[WhiteElo "2371"]
[BlackElo "2278"]
[TimeControl "180+1"]
[EndTime "9:57:56 PDT"]
[Termination "cycygogne won by resignation"]

1. e4 {[%clk 0:03:00.9]} 1... d5 {[%clk 0:02:58.2]} 2. exd5 {[%clk 0:03:01]}
2... Qxd5 {[%clk 0:02:59.1]} 3. Nc3 {[%clk 0:03:01.6]} 3... Qd6 {[%clk
0:02:58.9]} 4. d4 {[%clk 0:03:02.3]} 4... Nf6 {[%clk 0:02:58.1]} 5. Nf3 {[%clk
0:03:02.6]} 5... Bg4 {[%clk 0:02:58.1]} 6. Be2 {[%clk 0:03:02.8]} 6... e6 {[%clk
0:02:56.8]} 7. h3 {[%clk 0:03:02.9]} 7... Bh5 {[%clk 0:02:56.4]} 8. Be3 {[%clk
0:03:03.6]} 8... Nc6 {[%clk 0:02:51.5]} 9. O-O {[%clk 0:03:03]} 9... O-O-O
{[%clk 0:02:48.1]} 10. a3 {[%clk 0:03:01.8]} 10... Kb8 {[%clk 0:02:44.1]} 11. b4
{[%clk 0:03:01]} 11... Bxf3 {[%clk 0:02:38.7]} 12. Bxf3 {[%clk 0:02:59.5]} 12...
Nxd4 {[%clk 0:02:39]} 13. Bxd4 {[%clk 0:02:49]} 13... Qxd4 {[%clk 0:02:39.9]}
14. Qe1 {[%clk 0:02:48.8]} 14... Bd6 {[%clk 0:02:34.6]} 15. Nb5 {[%clk 0:02:31]}
15... Qe5 {[%clk 0:02:28.2]} 16. Nxd6 {[%clk 0:02:28.5]} 16... Qxe1 {[%clk
0:02:23.5]} 17. Rfxe1 {[%clk 0:02:26.7]} 17... Rxd6 {[%clk 0:02:23.6]} 18. c4
{[%clk 0:02:27]} 18... c6 {[%clk 0:02:19.9]} 19. Ra2 {[%clk 0:02:24.4]} 19...
Rhd8 {[%clk 0:02:18]} 20. a4 {[%clk 0:02:23.4]} 20... Rd2 {[%clk 0:02:17.4]} 21.
Rxd2 {[%clk 0:02:16.3]} 21... Rxd2 {[%clk 0:02:18.3]} 22. b5 {[%clk 0:02:17]}
22... Kc7 {[%clk 0:02:16.6]} 23. bxc6 {[%clk 0:02:14.6]} 23... bxc6 {[%clk
0:02:16.7]} 24. Rb1 {[%clk 0:02:15]} 24... Rc2 {[%clk 0:02:11.1]} 25. Rb4 {[%clk
0:02:12.8]} 25... Nd7 {[%clk 0:02:01.9]} 26. a5 {[%clk 0:02:02]} 26... a6 {[%clk
0:01:58.1]} 27. Rb3 {[%clk 0:01:41.1]} 27... Ra2 {[%clk 0:01:55.9]} 28. Rd3
{[%clk 0:01:38.3]} 28... Rxa5 {[%clk 0:01:52.7]} 29. g4 {[%clk 0:01:12.1]} 29...
Ne5 {[%clk 0:01:49.9]} 30. Re3 {[%clk 0:00:45.1]} 30... Nxc4 {[%clk 0:01:49.6]}
31. Re4 {[%clk 0:00:28.7]} 31... Nd2 {[%clk 0:01:35.8]} 32. Rf4 {[%clk
0:00:28.7]} 32... Nxf3+ {[%clk 0:01:34]} 33. Rxf3 {[%clk 0:00:29.6]} 33... f6
{[%clk 0:01:34.3]} 34. Re3 {[%clk 0:00:29.3]} 34... e5 {[%clk 0:01:32]} 35. f4
{[%clk 0:00:29.2]} 35... Kd6 {[%clk 0:01:29.9]} 36. fxe5+ {[%clk 0:00:27.7]}
36... Rxe5 {[%clk 0:01:28.2]} 37. Kf2 {[%clk 0:00:28.6]} 37... Rxe3 {[%clk
0:01:27.5]} 38. Kxe3 {[%clk 0:00:19.7]} 38... Ke5 {[%clk 0:01:26.6]} 0-1

[Event "Early-Titled-Tuesday-Blitz-October-17-2023"]
[Site "Chess.com"]
[Date "2023.10.17"]
[Round "10"]
[White "CristianS27"]
[Black "wqws"]
[Result "1-0"]
[WhiteElo "2525"]
[BlackElo "2617"]
[TimeControl "180+1"]
[EndTime "9:58:03 PDT"]
[Termination "CristianS27 won by resignation"]

1. e4 {[%clk 0:03:00.9]} 1... e5 {[%clk 0:02:53.9]} 2. Nf3 {[%clk 0:03:01.3]}
2... Nc6 {[%clk 0:02:54.8]} 3. Bc4 {[%clk 0:03:01.7]} 3... Bc5 {[%clk
0:02:54.2]} 4. c3 {[%clk 0:03:02]} 4... Nf6 {[%clk 0:02:54.8]} 5. d4 {[%clk
0:03:02.3]} 5... exd4 {[%clk 0:02:54]} 6. cxd4 {[%clk 0:03:03.2]} 6... Bb4+
{[%clk 0:02:53.6]} 7. Nc3 {[%clk 0:03:04.1]} 7... Nxe4 {[%clk 0:02:43.9]} 8. O-O
{[%clk 0:03:04.5]} 8... Bxc3 {[%clk 0:02:43.8]} 9. d5 {[%clk 0:03:05]} 9... Ne7
{[%clk 0:02:40]} 10. bxc3 {[%clk 0:03:04.1]} 10... O-O {[%clk 0:02:39.3]} 11.
Re1 {[%clk 0:02:58.2]} 11... Nf6 {[%clk 0:02:39.1]} 12. d6 {[%clk 0:02:57.1]}
12... Ng6 {[%clk 0:02:35.9]} 13. Ng5 {[%clk 0:02:50.1]} 13... cxd6 {[%clk
0:02:32]} 14. Qxd6 {[%clk 0:02:48.6]} 14... h6 {[%clk 0:02:14.1]} 15. Ne4 {[%clk
0:02:14.2]} 15... Nxe4 {[%clk 0:02:11.7]} 16. Rxe4 {[%clk 0:02:11.3]} 16... Qb6
{[%clk 0:02:04.9]} 17. Qg3 {[%clk 0:01:56.5]} 17... d5 {[%clk 0:01:59.8]} 18.
Bxd5 {[%clk 0:01:52.1]} 18... Bf5 {[%clk 0:02:00.2]} 19. Rb4 {[%clk 0:01:48.2]}
19... Rfe8 {[%clk 0:01:52.7]} 20. Be3 {[%clk 0:01:26.1]} 20... Qf6 {[%clk
0:01:50]} 21. Bd4 {[%clk 0:01:19]} 21... Qe7 {[%clk 0:01:49.5]} 22. h3 {[%clk
0:01:11.5]} 22... Qd7 {[%clk 0:01:30.1]} 23. c4 {[%clk 0:00:59.2]} 23... b6
{[%clk 0:01:17.8]} 24. h4 {[%clk 0:00:56.5]} 24... Rac8 {[%clk 0:01:13.5]} 25.
h5 {[%clk 0:00:55.3]} 25... a5 {[%clk 0:00:38.6]} 26. hxg6 {[%clk 0:00:54.1]}
26... Bxg6 {[%clk 0:00:33.1]} 27. Qxg6 {[%clk 0:00:51.8]} 1-0

[Event "Early-Titled-Tuesday-Blitz-October-17-2023"]
[Site "Chess.com"]
[Date "2023.10.17"]
[Round "10"]
[White "Witty_Alien"]
[Black "Payyappat"]
[Result "0-1"]
[WhiteElo "2241"]
[BlackElo "2461"]
[TimeControl "180+1"]
[EndTime "9:58:04 PDT"]
[Termination "Payyappat won by checkmate"]

1. e4 {[%clk 0:03:00.9]} 1... c6 {[%clk 0:02:53.6]} 2. d4 {[%clk 0:03:00.7]}
2... d5 {[%clk 0:02:54.5]} 3. exd5 {[%clk 0:02:47.4]} 3... cxd5 {[%clk
0:02:53.9]} 4. c4 {[%clk 0:02:48.3]} 4... Nf6 {[%clk 0:02:52.8]} 5. Nf3 {[%clk
0:02:48.9]} 5... Nc6 {[%clk 0:02:50.2]} 6. Nc3 {[%clk 0:02:49.1]} 6... g6 {[%clk
0:02:49.4]} 7. Be2 {[%clk 0:02:44.5]} 7... Bg7 {[%clk 0:02:48.8]} 8. O-O {[%clk
0:02:44.9]} 8... O-O {[%clk 0:02:48.2]} 9. Bf4 {[%clk 0:02:21.9]} 9... Bg4
{[%clk 0:02:47.3]} 10. h3 {[%clk 0:02:11.2]} 10... Bxf3 {[%clk 0:02:41.7]} 11.
Bxf3 {[%clk 0:02:11]} 11... Ne4 {[%clk 0:02:37.3]} 12. Nxd5 {[%clk 0:02:04.7]}
12... Nd6 {[%clk 0:02:31.5]} 13. Re1 {[%clk 0:01:57.7]} 13... Nxc4 {[%clk
0:02:23.8]} 14. Qb3 {[%clk 0:01:38.7]} 14... N4a5 {[%clk 0:02:15.4]} 15. Qa4
{[%clk 0:01:30]} 15... Rc8 {[%clk 0:02:10.2]} 16. b4 {[%clk 0:01:12.2]} 16...
Nc4 {[%clk 0:02:04.3]} 17. Rad1 {[%clk 0:00:51.4]} 17... e6 {[%clk 0:01:55.7]}
18. b5 {[%clk 0:00:39.2]} 18... Nxd4 {[%clk 0:01:45]} 19. Nb4 {[%clk 0:00:11.7]}
19... Nb2 {[%clk 0:01:39]} 20. Qxa7 {[%clk 0:00:09.9]} 20... Nxf3+ {[%clk
0:01:37.2]} 21. gxf3 {[%clk 0:00:08.4]} 21... Nxd1 {[%clk 0:01:37.3]} 22. Qxb7
{[%clk 0:00:07.2]} 22... Nxf2 {[%clk 0:01:28.8]} 23. Nc6 {[%clk 0:00:03.1]}
23... Nxh3+ {[%clk 0:01:25.6]} 24. Kh2 {[%clk 0:00:03.4]} 24... Rxc6 {[%clk
0:01:23.9]} 25. bxc6 {[%clk 0:00:01.7]} 25... Nxf4 {[%clk 0:01:22.7]} 26. c7
{[%clk 0:00:01.4]} 26... Qh4+ {[%clk 0:01:15]} 27. Kg1 {[%clk 0:00:01.3]} 27...
Qg3+ {[%clk 0:01:14.5]} 28. Kf1 {[%clk 0:00:02]} 28... Qg2# {[%clk 0:01:15.4]}
0-1

[Event "Early-Titled-Tuesday-Blitz-October-17-2023"]
[Site "Chess.com"]
[Date "2023.10.17"]
[Round "10"]
[White "rikchessmx"]
[Black "Magila31"]
[Result "0-1"]
[WhiteElo "2253"]
[BlackElo "2357"]
[TimeControl "180+1"]
[EndTime "9:58:10 PDT"]
[Termination "Magila31 won by resignation"]

1. e4 {[%clk 0:02:57.4]} 1... e5 {[%clk 0:02:57.9]} 2. Nf3 {[%clk 0:02:56.6]}
2... Nc6 {[%clk 0:02:57.2]} 3. Bb5 {[%clk 0:02:54.5]} 3... Nf6 {[%clk 0:02:56]}
4. O-O {[%clk 0:02:47.5]} 4... Nxe4 {[%clk 0:02:55.1]} 5. d4 {[%clk 0:02:46.3]}
5... Nd6 {[%clk 0:02:54.5]} 6. dxe5 {[%clk 0:02:45.5]} 6... Nxb5 {[%clk
0:02:54.1]} 7. a4 {[%clk 0:02:44.9]} 7... Nbd4 {[%clk 0:02:53.2]} 8. Nxd4 {[%clk
0:02:43.9]} 8... Nxd4 {[%clk 0:02:53.4]} 9. Qxd4 {[%clk 0:02:43.3]} 9... d5
{[%clk 0:02:52.9]} 10. exd6 {[%clk 0:02:39.8]} 10... Qxd6 {[%clk 0:02:52.2]} 11.
Re1+ {[%clk 0:02:39.9]} 11... Be6 {[%clk 0:02:46.9]} 12. Qxd6 {[%clk 0:02:34.1]}
12... Bxd6 {[%clk 0:02:46.2]} 13. Nc3 {[%clk 0:02:35]} 13... O-O-O {[%clk
0:02:33.4]} 14. Be3 {[%clk 0:02:33.6]} 14... a6 {[%clk 0:02:24]} 15. Ne4 {[%clk
0:02:29.9]} 15... Be7 {[%clk 0:02:19.8]} 16. b3 {[%clk 0:02:21.6]} 16... Bf5
{[%clk 0:02:16.6]} 17. Bg5 {[%clk 0:01:59.1]} 17... Bxg5 {[%clk 0:01:34.1]} 18.
Nxg5 {[%clk 0:01:57.5]} 18... Rhf8 {[%clk 0:01:31.7]} 19. c4 {[%clk 0:01:52.7]}
19... a5 {[%clk 0:01:17.5]} 20. Re3 {[%clk 0:01:44.7]} 20... h6 {[%clk
0:01:13.6]} 21. Nf3 {[%clk 0:01:29.1]} 21... Rd3 {[%clk 0:01:02.7]} 22. Rae1
{[%clk 0:01:25.7]} 22... Rfd8 {[%clk 0:01:00.8]} 23. h3 {[%clk 0:01:22.7]} 23...
Rxe3 {[%clk 0:00:50.7]} 24. Rxe3 {[%clk 0:01:20.5]} 24... Rd3 {[%clk 0:00:49.2]}
25. Rxd3 {[%clk 0:01:16.7]} 25... Bxd3 {[%clk 0:00:48.8]} 26. Nd2 {[%clk
0:01:16.5]} 26... Kd7 {[%clk 0:00:46.8]} 27. f3 {[%clk 0:01:05.5]} 27... Kd6
{[%clk 0:00:46.4]} 28. Kf2 {[%clk 0:01:06]} 28... Kc5 {[%clk 0:00:45.9]} 29. Ke3
{[%clk 0:01:06.9]} 29... Bc2 {[%clk 0:00:45.6]} 30. g4 {[%clk 0:01:02.5]} 30...
Kb4 {[%clk 0:00:44.8]} 31. Kd4 {[%clk 0:01:02.3]} 31... Bxb3 {[%clk 0:00:44.2]}
32. c5 {[%clk 0:01:01.8]} 32... Bxa4 {[%clk 0:00:43.3]} 33. Ne4 {[%clk
0:00:59.4]} 33... Bc6 {[%clk 0:00:42]} 34. Ng3 {[%clk 0:00:57.9]} 34... a4
{[%clk 0:00:38.1]} 35. f4 {[%clk 0:00:56]} 35... a3 {[%clk 0:00:37.7]} 36. Ne2
{[%clk 0:00:56]} 36... a2 {[%clk 0:00:36.9]} 37. Ng3 {[%clk 0:00:55.9]} 37...
a1=Q+ {[%clk 0:00:36.5]} 0-1

[Event "Early-Titled-Tuesday-Blitz-October-17-2023"]
[Site "Chess.com"]
[Date "2023.10.17"]
[Round "10"]
[White "DarZay"]
[Black "nitpicker"]
[Result "1-0"]
[WhiteElo "2222"]
[BlackElo "2232"]
[TimeControl "180+1"]
[EndTime "9:58:12 PDT"]
[Termination "DarZay won on time"]

1. e4 {[%clk 0:02:56.3]} 1... c5 {[%clk 0:02:59.9]} 2. Nf3 {[%clk 0:02:55.6]}
2... Nc6 {[%clk 0:02:59.9]} 3. d4 {[%clk 0:02:56]} 3... cxd4 {[%clk 0:02:59.5]}
4. Nxd4 {[%clk 0:02:56.4]} 4... Nf6 {[%clk 0:02:59.8]} 5. Nc3 {[%clk 0:02:56.8]}
5... d6 {[%clk 0:02:59.8]} 6. Bc4 {[%clk 0:02:55.1]} 6... Qb6 {[%clk 0:02:59.3]}
7. Be3 {[%clk 0:02:44.5]} 7... Qxb2 {[%clk 0:02:37.2]} 8. Ndb5 {[%clk
0:02:41.9]} 8... Qb4 {[%clk 0:02:34.3]} 9. Qe2 {[%clk 0:02:24.9]} 9... Qa5
{[%clk 0:02:24.8]} 10. Bd2 {[%clk 0:02:21.2]} 10... Qd8 {[%clk 0:02:19.8]} 11.
Nd5 {[%clk 0:02:17.3]} 11... Nxd5 {[%clk 0:02:05.5]} 12. exd5 {[%clk 0:02:17.4]}
12... Ne5 {[%clk 0:02:03.4]} 13. f4 {[%clk 0:02:15.3]} 13... Bg4 {[%clk
0:01:24.2]} 14. Qe4 {[%clk 0:02:09.4]} 14... Nxc4 {[%clk 0:01:17.6]} 15. Qxc4
{[%clk 0:02:07.7]} 15... Rc8 {[%clk 0:01:15.4]} 16. Qa4 {[%clk 0:02:07.1]} 16...
Bd7 {[%clk 0:01:14.2]} 17. Qb3 {[%clk 0:01:49.5]} 17... Qb6 {[%clk 0:01:07.2]}
18. a4 {[%clk 0:01:42.9]} 18... a6 {[%clk 0:01:03.3]} 19. Be3 {[%clk 0:01:42.7]}
19... Qa5+ {[%clk 0:01:03.2]} 20. Bd2 {[%clk 0:01:42.9]} 20... Qd8 {[%clk
0:01:01.4]} 21. Nd4 {[%clk 0:01:38.2]} 21... Qc7 {[%clk 0:00:48.5]} 22. O-O
{[%clk 0:01:32.8]} 22... g6 {[%clk 0:00:46.2]} 23. f5 {[%clk 0:01:29]} 23... Bg7
{[%clk 0:00:45.8]} 24. Ne6 {[%clk 0:01:24.1]} 24... fxe6 {[%clk 0:00:38.9]} 25.
fxe6 {[%clk 0:01:21]} 25... Qxc2 {[%clk 0:00:26]} 26. exd7+ {[%clk 0:01:20.7]}
26... Kxd7 {[%clk 0:00:25.6]} 27. Qh3+ {[%clk 0:01:15.3]} 27... Ke8 {[%clk
0:00:02.1]} 28. Rac1 {[%clk 0:01:13.1]} 28... Bd4+ {[%clk 0:00:02.2]} 29. Kh1
{[%clk 0:01:12.6]} 29... Qxc1 {[%clk 0:00:02.2]} 30. Bxc1 {[%clk 0:01:10]} 1-0

[Event "Early-Titled-Tuesday-Blitz-October-17-2023"]
[Site "Chess.com"]
[Date "2023.10.17"]
[Round "10"]
[White "Mr_Lion22"]
[Black "szefru"]
[Result "1-0"]
[WhiteElo "2487"]
[BlackElo "2342"]
[TimeControl "180+1"]
[EndTime "9:58:13 PDT"]
[Termination "Mr_Lion22 won by resignation"]

1. d4 {[%clk 0:02:56.6]} 1... Nf6 {[%clk 0:02:59]} 2. c4 {[%clk 0:02:57.5]} 2...
g6 {[%clk 0:02:59]} 3. Nc3 {[%clk 0:02:57.5]} 3... Bg7 {[%clk 0:02:59.4]} 4. e4
{[%clk 0:02:57.9]} 4... d6 {[%clk 0:03:00]} 5. Be2 {[%clk 0:02:58.4]} 5... O-O
{[%clk 0:03:00.2]} 6. Be3 {[%clk 0:02:59.1]} 6... e5 {[%clk 0:02:56.2]} 7. d5
{[%clk 0:02:59]} 7... Nbd7 {[%clk 0:02:55.1]} 8. g4 {[%clk 0:02:58.9]} 8... Nc5
{[%clk 0:02:36.9]} 9. f3 {[%clk 0:02:59.2]} 9... a5 {[%clk 0:02:36.1]} 10. h4
{[%clk 0:02:59.5]} 10... Nfd7 {[%clk 0:02:33.7]} 11. h5 {[%clk 0:02:58.6]} 11...
g5 {[%clk 0:02:30.7]} 12. h6 {[%clk 0:02:43.3]} 12... Bf6 {[%clk 0:02:28.4]} 13.
Qd2 {[%clk 0:02:43.3]} 13... Be7 {[%clk 0:02:28.4]} 14. Nd1 {[%clk 0:02:35.5]}
14... f6 {[%clk 0:02:28.2]} 15. Bf2 {[%clk 0:02:34.2]} 15... a4 {[%clk
0:02:17.3]} 16. Ne3 {[%clk 0:02:31.5]} 16... Nb6 {[%clk 0:02:10.6]} 17. Bd1
{[%clk 0:02:29.1]} 17... Bd7 {[%clk 0:02:04.3]} 18. Ne2 {[%clk 0:02:29.1]} 18...
c6 {[%clk 0:01:46.4]} 19. Ng3 {[%clk 0:02:18.4]} 19... Rf7 {[%clk 0:01:32.8]}
20. Be2 {[%clk 0:02:17.8]} 20... Bf8 {[%clk 0:01:31.6]} 21. Kf1 {[%clk
0:02:16.5]} 21... cxd5 {[%clk 0:01:28.2]} 22. cxd5 {[%clk 0:02:16.1]} 22... Qe8
{[%clk 0:01:24.6]} 23. Kg2 {[%clk 0:02:10]} 23... Bb5 {[%clk 0:01:22.5]} 24.
Nef5 {[%clk 0:02:08]} 24... Rc8 {[%clk 0:01:10.9]} 25. Rac1 {[%clk 0:02:06.4]}
25... Rfc7 {[%clk 0:01:09.8]} 26. Nh5 {[%clk 0:02:05]} 26... Rf7 {[%clk
0:00:58.2]} 27. Nhg7 {[%clk 0:02:03.4]} 27... Qd7 {[%clk 0:00:47.9]} 28. Bxc5
{[%clk 0:01:56.5]} 28... dxc5 {[%clk 0:00:40.6]} 29. Ne6 {[%clk 0:01:44.5]}
29... Bxe2 {[%clk 0:00:38.3]} 30. Qxe2 {[%clk 0:01:45.4]} 30... c4 {[%clk
0:00:28.6]} 31. Qe3 {[%clk 0:01:44.3]} 31... Qb5 {[%clk 0:00:24.6]} 32. Rc2
{[%clk 0:01:36.5]} 32... Rd7 {[%clk 0:00:14.9]} 33. Nxg5 {[%clk 0:01:31]} 33...
fxg5 {[%clk 0:00:12.3]} 34. Qxg5+ {[%clk 0:01:31.9]} 34... Kh8 {[%clk
0:00:12.8]} 35. Qf6+ {[%clk 0:01:32.5]} 35... Kg8 {[%clk 0:00:13.2]} 36. Rh5
{[%clk 0:01:32.9]} 36... Bg7 {[%clk 0:00:06.1]} 37. Rg5 {[%clk 0:01:30.6]} 1-0